fUSD/lending_fUSD_20260301
["ID","MTS","AMOUNT","RATE_DAILY","PERIOD"]
[406949941,1772338231676,-1938.95472284,0.0001,2]
[406949942,1772338231686,-778.71953615,0.0001,2]
[406949943,1772338231695,-22883.95506447,0.0001,2]
[406949944,1772338231705,-500.0,0.00010018,2]
[406949945,1772338231714,-698.69,0.00010031,2]
[406949946,1772338231724,-1000.0,0.00010073,2]
[406949947,1772338231733,-1600.0,0.00010089,2]
[406949948,1772338231743,-260.84148062,0.000101,2]
[406949949,1772338231752,-698.69,0.00010343,2]
[406949950,1772338231761,-500.0,0.00010539,2]
[406949951,1772338231771,-500.0,0.00010539,2]
[406949953,1772338231780,-246.5570722,0.00010539,2]
[406949955,1772338231789,-500.0,0.00010539,2]
[406949957,1772338231798,-500.0,0.00010539,2]
[406949959,1772338231807,-500.0,0.00010539,2]
[406949961,1772338231815,-500.0,0.00010539,2]
[406949963,1772338231824,-500.0,0.00010539,2]
[406949965,1772338231833,-500.0,0.00010539,2]
[406949967,1772338231842,-500.0,0.00010539,2]
[406949977,1772338232013,-500.0,0.00010539,2]
[406949979,1772338232024,-500.0,0.00010539,2]
[406949980,1772338232034,-500.0,0.00010539,2]
[406949981,1772338232043,-523.17251121,0.00010539,2]
[406949982,1772338232052,-151.0,0.00010539,2]
[406949983,1772338232061,-151.0,0.00010539,2]
[406949984,1772338232071,-151.0,0.00010539,2]
[406949985,1772338232080,-151.0,0.00010539,2]
[406949986,1772338232090,-151.0,0.00010539,2]
[406949987,1772338232099,-151.0,0.00010539,2]
[406949988,1772338232108,-151.0,0.00010539,2]
[406949989,1772338232117,-151.0,0.00010539,2]
[406949990,1772338232126,-151.0,0.00010539,2]
[406949991,1772338232135,-151.0,0.00010539,2]
[406949992,1772338232144,-151.0,0.00010539,2]
[406949993,1772338232152,-48.6956039,0.00010539,2]
[406949994,1772338232163,-102.3043961,0.00010539,2]
[406949995,1772338232172,-924.0,0.00010546,2]
[406949996,1772338232182,-253.0,0.00010546,2]
[406949997,1772338232191,-698.69,0.00010654,2]
[406949998,1772338232200,-269.35887299,0.000107,2]
[406949999,1772338232210,-250.24290196,0.00010787,2]
[406950000,1772338232219,-698.69,0.00010965,2]
[406950001,1772338232228,-947.57827244,0.00010997,2]
[406950002,1772338232237,-1680.0,0.00010997,2]
[406950003,1772338232246,-255.0,0.00010999,2]
[406950004,1772338232255,-9461.87379495,0.00011,2]
[406950005,1772338232264,-698.69,0.00011277,2]
[406950006,1772338232273,-852.08786262,0.00011332,2]
[406950007,1772338232285,-147.91213738,0.00011332,2]
[406950008,1772338232294,-1600.0,0.00011351,2]
[406950009,1772338232303,-166.712536,0.00011397,2]
[406950010,1772338232313,-698.69,0.00011588,2]
[406950011,1772338232322,-150.0,0.00011701,2]
[406950012,1772338232331,-152.91222231,0.00011735,2]
[406950013,1772338232340,-44855.73503473,0.00011747,2]
[406950014,1772338232350,-788.12075344,0.00011761,2]
[406950015,1772338232359,-61426.67,0.00011768,2]
[406950016,1772338232368,-158.98,0.00011847,2]
[406950017,1772338232378,-5997.7313,0.0001189,2]
[406950018,1772338232387,-698.69,0.00011899,2]
[406950019,1772338232396,-700.0,0.000119,4]
[406950020,1772338232405,-151.0,0.00011914,2]
[406950021,1772338232415,-500.0,0.00011916,2]
[406950022,1772338232424,-500.0,0.00011916,2]
[406950023,1772338232433,-623.73171757,0.00011916,2]
[406950024,1772338232445,-272.76245861,0.00011916,2]
[406950025,1772338232455,-214.70956243,0.00011916,2]
[406950026,1772338232465,-1868.82,0.00011917,2]
[406950027,1772338232474,-16997.31368207,0.00011917,2]
[406950028,1772338232494,-2925.90264677,0.00011917,2]
[406950029,1772338232504,-16624.05247707,0.00011917,2]
[406950030,1772338232517,-2007.21025571,0.00011917,2]
[406950031,1772338237595,-605.91046908,0.00011917,2]
[406950032,1772338237649,-539.93551002,0.00011917,2]
[406950033,1772338237665,-993.34152341,0.00011917,2]
[406950034,1772338237754,-7906.75379404,0.00011917,2]
[406950040,1772338239690,-809.79740976,0.00011917,2]
[406950041,1772338239746,-435267.40223207,0.00011917,2]
[406950042,1772338239757,-16637.98,0.00011935,2]
[406950043,1772338239774,-166.66,0.00011975,2]
[406950044,1772338239787,-500.0,0.0001207,2]
[406950045,1772338239797,-835.1984938,0.0001207,2]
[406950046,1772338239806,-501.9440879,0.0001207,2]
[406950047,1772338239817,-671.0,0.00012096,2]
[406950048,1772338239826,-433.0,0.00012099,2]
[406950049,1772338239836,-698.69,0.00012211,2]
[406950050,1772338239846,-166.66,0.0001237,2]
[406950051,1772338239855,-44855.73503472,0.00012431,2]
[406950052,1772338239865,-308.77176682,0.000125,2]
[406950053,1772338239875,-698.69,0.00012522,2]
[406950054,1772338239884,-1000.0,0.00012591,2]
[406950055,1772338239894,-1600.0,0.00012612,2]
[406950056,1772338239904,-166.66,0.00012766,2]
[406950057,1772338239913,-698.69,0.00012833,2]
[406950058,1772338239923,-5630.08383952,0.00013,2]
[406950059,1772338239933,-44855.73503472,0.00013114,2]
[406950060,1772338239942,-698.69,0.00013145,2]
[406950061,1772338239952,-166.66,0.00013161,2]
[406950062,1772338239961,-290.3696,0.00013197,2]
[406950063,1772338239970,-32885.2992,0.00013197,2]
[406950064,1772338239984,-6441.1957656,0.00013297,2]
[406950065,1772338239993,-178.0,0.00013309,2]
[406950066,1772338240003,-3240.0,0.00013425,2]
[406950067,1772338240012,-166.66,0.00013442,2]
[406950068,1772338240022,-166.66,0.00013556,2]
[406950069,1772338240031,-151.0,0.00013695,2]
[406950070,1772338240040,-500.0,0.00013698,2]
[406950071,1772338240050,-500.0,0.00013698,2]
[406950072,1772338240059,-500.0,0.00013698,2]
[406950073,1772338240069,-500.0,0.00013698,2]
[406950074,1772338240078,-500.0,0.00013698,2]
[406950075,1772338240087,-500.0,0.00013698,2]
[406950076,1772338240097,-500.0,0.00013698,2]
[406950077,1772338240106,-500.0,0.00013698,2]
[406950078,1772338240116,-500.0,0.00013698,2]
[406950079,1772338240126,-500.0,0.00013698,2]
[406950080,1772338240135,-500.0,0.00013698,2]
[406950081,1772338240144,-500.0,0.00013698,2]
[406950082,1772338240153,-500.0,0.00013698,2]
[406950083,1772338240163,-572.50960573,0.00013698,2]
[406950084,1772338240177,-500.0,0.00013698,2]
[406950085,1772338240186,-500.0,0.00013698,2]
[406950086,1772338240196,-500.0,0.00013698,2]
[406950087,1772338240205,-500.0,0.00013698,2]
[406950088,1772338240215,-500.0,0.00013698,2]
[406950090,1772338240224,-500.0,0.00013698,2]
[406950092,1772338240234,-500.0,0.00013698,2]
[406950094,1772338240243,-500.0,0.00013698,2]
[406950096,1772338240252,-597.47,0.00013698,2]
[406950098,1772338240261,-508.46543711,0.00013698,2]
[406950100,1772338240270,-500.0,0.00013698,2]
[406950102,1772338240280,-500.0,0.00013698,2]
[406950103,1772338240289,-500.0,0.00013698,2]
[406950104,1772338240298,-500.0,0.00013698,2]
[406950105,1772338240308,-500.0,0.00013698,2]
[406950106,1772338240317,-513.04525932,0.00013698,2]
[406950107,1772338240326,-500.0,0.00013698,2]
[406950108,1772338240336,-500.0,0.00013698,2]
[406950109,1772338240345,-500.0,0.00013698,2]
[406950110,1772338240355,-500.0,0.00013698,2]
[406950111,1772338240367,-500.0,0.00013698,2]
[406950112,1772338240376,-500.0,0.00013698,2]
[406950113,1772338240387,-500.0,0.00013698,2]
[406950114,1772338240396,-500.0,0.00013698,2]
[406950115,1772338240406,-500.0,0.00013698,2]
[406950116,1772338240415,-500.0,0.00013698,2]
[406950117,1772338240424,-500.0,0.00013698,2]
[406950118,1772338240434,-500.0,0.00013698,2]
[406950119,1772338240447,-500.0,0.00013698,2]
[406950120,1772338240457,-500.0,0.00013698,2]
[406950121,1772338240467,-500.0,0.00013698,2]
[406950122,1772338240476,-500.0,0.00013698,2]
[406950123,1772338240486,-500.0,0.00013698,2]
[406950124,1772338240498,-508.6322427,0.00013698,2]
[406950125,1772338240508,-500.0,0.00013698,2]
[406950126,1772338240519,-713.99,0.00013699,2]
[406950127,1772338240529,-6823.06474186,0.000137,2]
[406950128,1772338240538,-5148.07,0.000137,2]
[406950129,1772338240547,-5148.07,0.000137,2]
[406950130,1772338240558,-5148.07,0.000137,2]
[406950131,1772338240567,-5148.07,0.000137,2]
[406950132,1772338240576,-5148.07,0.000137,2]
[406950133,1772338240586,-166.66,0.00013708,2]
[406950134,1772338240595,-44855.73503472,0.00013798,2]
[406950135,1772338240605,-1000.0,0.0001385,2]
[406950136,1772338240615,-1600.0,0.00013873,2]
[406950137,1772338240625,-1400.0,0.000139,5]
[406950138,1772338240634,-166.66,0.00013951,2]
[406950139,1772338240644,-166.66,0.00013974,2]
[406950140,1772338240654,-1500.0,0.00014,2]
[406950141,1772338240664,-525.0,0.0001411,2]
[406950142,1772338240673,-527.0,0.0001411,2]
[406950143,1772338240682,-150.0,0.00014149,2]
[406950144,1772338240692,-200.055043,0.00014246,7]
[406950145,1772338240701,-500.0,0.00014256,2]
[406950146,1772338240711,-500.0,0.00014256,2]
[406950147,1772338240720,-9036.85,0.00014258,2]
[406950148,1772338240729,-13458.597113,0.00014295,7]
[406950149,1772338240738,-500.0,0.00014381,2]
[406950150,1772338240747,-10363.41333432,0.0001439,2]
[406950151,1772338240767,-16307.73,0.00014454,2]
[406950152,1772338240777,-44855.73503472,0.00014482,2]
[406950153,1772338240787,-200.0,0.00014523,2]
[406950154,1772338240796,-155.0,0.00014625,2]
[406950155,1772338240805,-1963.190504,0.00014738,7]
[406950156,1772338240815,-500.0,0.00014773,2]
[406950157,1772338240825,-500.0,0.00014773,2]
[406950158,1772338240834,-500.0,0.00014773,2]
[406950159,1772338240843,-500.0,0.00014773,2]
[406950160,1772338240853,-500.0,0.00014773,2]
[406950161,1772338240862,-500.0,0.00014773,2]
[406950162,1772338240872,-501.00572186,0.00014773,2]
[406950163,1772338240882,-500.0,0.00014773,2]
[406950164,1772338240892,-500.0,0.00014773,2]
[406950165,1772338240901,-500.29013096,0.00014773,2]
[406950166,1772338240911,-500.0,0.00014773,2]
[406950167,1772338240920,-500.0,0.00014773,2]
[406950168,1772338240929,-500.0,0.00014773,2]
[406950169,1772338240939,-500.0,0.00014773,2]
[406950170,1772338240948,-500.0,0.00014773,2]
[406950171,1772338240958,-510.29706641,0.00014773,2]
[406950172,1772338240968,-162.24683353,0.00014773,2]
[406950173,1772338240979,-500.0,0.00014773,2]
[406950174,1772338240989,-500.0,0.00014773,2]
[406950175,1772338240999,-500.0,0.00014773,2]
[406950176,1772338241008,-500.0,0.00014773,2]
[406950177,1772338241019,-500.0,0.00014773,2]
[406950178,1772338241030,-500.0,0.00014773,2]
[406950179,1772338241039,-500.0,0.00014773,2]
[406950180,1772338241049,-500.0,0.00014773,2]
[406950181,1772338241060,-304.60976893,0.00014773,2]
[406950182,1772338241069,-500.0,0.00014773,2]
[406950183,1772338241079,-500.0,0.00014773,2]
[406950184,1772338241088,-504.06215413,0.00014773,2]
[406950185,1772338241098,-500.0,0.00014773,2]
[406950186,1772338241107,-500.0,0.00014773,2]
[406950187,1772338241116,-500.74855154,0.00014773,2]
[406950188,1772338241126,-500.0,0.00014773,2]
[406950189,1772338241135,-496.26040534,0.00014773,2]
[406950190,1772338241144,-500.0,0.00014773,2]
[406950191,1772338241153,-500.0,0.00014773,2]
[406950192,1772338241163,-500.0,0.00014773,2]
[406950193,1772338241173,-500.0,0.00014773,2]
[406950194,1772338241184,-500.0,0.00014773,2]
[406950195,1772338241193,-500.0,0.00014773,2]
[406950196,1772338241203,-221.09591585,0.00014773,2]
[406950197,1772338241212,-500.0,0.00014811,2]
[406950198,1772338241222,-500.0,0.00014811,2]
[406950199,1772338241231,-500.0,0.00014811,2]
[406950200,1772338241241,-500.0,0.00014811,2]
[406950201,1772338241250,-500.0,0.00014811,2]
[406950202,1772338241259,-500.0,0.00014811,2]
[406950203,1772338241269,-500.0,0.00014811,2]
[406950204,1772338241278,-500.0,0.00014811,2]
[406950205,1772338241293,-668.65185757,0.00014811,2]
[406950206,1772338241303,-500.0,0.00014811,2]
[406950207,1772338241313,-500.0,0.00014811,2]
[406950208,1772338241322,-500.0,0.00014811,2]
[406950209,1772338241332,-585.88319395,0.00014811,2]
[406950210,1772338241341,-693.3919763,0.00014866,2]
[406950211,1772338241350,-500.0,0.00014883,2]
[406950212,1772338241360,-176.52206937,0.000149,2]
[406950213,1772338241370,-719.04747942,0.00014921,2]
[406950214,1772338241379,-160.0,0.00014926,3]
[406950215,1772338241388,-5000.0,0.00014932,2]
[406950216,1772338241398,-174.09452548,0.0001497,2]
[406950217,1772338241409,-160.0,0.0001497,2]
[406950218,1772338241420,-745.65223616,0.00014976,2]
[406950219,1772338241431,-3095.13159345,0.00015,2]
[406950220,1772338241445,-2058.44397551,0.00015,2]
[406950221,1772338241454,-8013.6931134,0.00015,2]
[406950222,1772338241463,-250.0,0.00015,2]
[406950223,1772338241472,-773.2413689,0.00015031,2]
[406950224,1772338241483,-1437.2250427,0.00015066,2]
[406950225,1772338241492,-801.85129955,0.00015086,2]
[406950226,1772338241501,-405.61,0.00015099,2]
[406950227,1772338241510,-1000.0,0.00015109,2]
[406950228,1772338241524,-1600.0,0.00015134,2]
[406950229,1772338241533,-831.51979763,0.00015141,2]
[406950230,1772338241543,-44855.73503472,0.00015165,2]
[406950231,1772338241552,-862.28603014,0.00015196,2]
[406950232,1772338241562,-152.98355904,0.00015199,2]
[406950233,1772338241571,-894.19061326,0.00015251,2]
[406950234,1772338241580,-1517.64,0.000153,2]
[406950235,1772338241589,-927.27566595,0.00015306,2]
[406950236,1772338241600,-9999.99,0.0001531,2]
[406950237,1772338241609,-150.99,0.0001531,2]
[406950238,1772338241620,-1708.52,0.0001531,2]
[406950239,1772338241629,-299.99,0.0001531,2]
[406950240,1772338241809,-150.99,0.0001531,2]
[406950241,1772338241825,-9999.99,0.0001531,2]
[406950242,1772338241835,-999.99,0.0001531,2]
[406950243,1772338241845,-399.91552401,0.00015321,2]
[406950244,1772338241859,-571.84525699,0.00015321,2]
[406950245,1772338241880,-1000.0,0.00015321,2]
[406950246,1772338241897,-404.94031558,0.00015321,2]
[406950247,1772338241907,-500.0,0.00015321,2]
[406950248,1772338241916,-500.0,0.00015321,2]
[406950249,1772338241925,-500.0,0.00015321,2]
[406950250,1772338241934,-704.64130889,0.00015321,2]
[406950251,1772338241944,-500.0,0.00015321,2]
[406950252,1772338241953,-437.68971943,0.00015321,2]
[406950253,1772338241962,-500.0,0.00015321,2]
[406950254,1772338241971,-500.0,0.00015321,2]
[406950255,1772338241981,-961.58486559,0.00015361,2]
[406950256,1772338241990,-510.36522913,0.000154,2]
[406950257,1772338241999,-1852.42,0.0001541,2]
[406950258,1772338242008,-997.16350561,0.00015416,2]
[406950259,1772338242018,-320.6882539,0.0001546,2]
[406950260,1772338242026,-4000.0,0.00015512,2]
[406950261,1772338242035,-2249.15250516,0.00015807,2]
[406950262,1772338242044,-377.20575701,0.00015839,2]
[406950263,1772338242054,-44855.73503472,0.00015849,2]
[406950264,1772338242063,-4000.0,0.000159,2]
[406950265,1772338242072,-150.0,0.00015911,2]
[406950266,1772338242081,-150.0,0.00015911,2]
[406950267,1772338242091,-150.0,0.00015911,2]
[406950268,1772338242100,-150.0,0.00015911,2]
[406950269,1772338242109,-619.0,0.00015911,2]
[406950270,1772338242118,-1041.0,0.00015911,2]
[406950271,1772338242127,-3500.0,0.00015911,2]
[406950272,1772338242136,-1278.0,0.00015911,2]
[406950273,1772338242146,-1211.0,0.00015911,2]
[406950274,1772338242155,-921.0,0.00015911,2]
[406950275,1772338242164,-2457.0,0.00015911,2]
[406950276,1772338242173,-4575.0,0.00015911,2]
[406950277,1772338242182,-5985.0,0.00015911,2]
[406950278,1772338242192,-155.0,0.00015954,2]
[406950279,1772338242201,-151.0,0.00016116,2]
[406950280,1772338242211,-7960.06,0.00016116,2]
[406950281,1772338242220,-5000.00958007,0.000162,5]
[406950282,1772338242229,-5952.0,0.00016264,2]
[406950283,1772338242238,-4000.0,0.00016287,2]
[406950284,1772338242247,-200.0,0.0001634,2]
[406950285,1772338242256,-500.0,0.00016356,2]
[406950286,1772338242265,-600.0,0.00016356,2]
[406950287,1772338242274,-900.0,0.00016356,2]
[406950288,1772338242283,-845.0,0.000164,2]
[406950289,1772338242293,-151.0,0.00016438,2]
[406950290,1772338242302,-151.0,0.00016438,2]
[406950291,1772338242311,-151.0,0.00016438,2]
[406950292,1772338242321,-151.0,0.0001653,2]
[406950293,1772338242330,-44855.73503472,0.00016533,2]
[406950294,1772338242339,-1980.054,0.00016536,2]
[406950295,1772338242348,-192.387,0.00016536,2]
[406950296,1772338242358,-900.0,0.00016592,2]
[406950297,1772338242367,-362.09319659,0.000166,2]
[406950299,1772338242376,-4000.0,0.00016675,2]
[406950301,1772338242385,-2100.0,0.000168,6]
[406950303,1772338242394,-904.15,0.00016873,2]
[406950305,1772338242403,-2800.0,0.000169,6]
[406950307,1772338242412,-151.0,0.00016997,2]
[406950308,1772338242422,-300.0,0.00016999,2]
[406950311,1772338242431,-300.0,0.00016999,2]
[406950314,1772338242442,-675.30386663,0.00016999,2]
[406950315,1772338242452,-507.0999,0.00017,2]
[406950317,1772338242461,-300.0,0.00017,2]
[406950319,1772338242470,-329393.97869579,0.00017,2]
[406950334,1772338242611,-90264.4699349,0.00017,2]
[406950336,1772338242622,-4926.23470969,0.00017,2]
[406950338,1772338242633,-777.03335094,0.00017,2]
[406950340,1772338242644,-3531.35,0.00017,2]
[406950362,1772338244419,-907.0656,0.000169,2]
[406950370,1772338245522,-754.0742602,0.000169,2]
[406950371,1772338245532,-74252.45763049,0.00017,2]
[406950372,1772338245888,-3003.22391369,0.00017,2]
[406950597,1772339431777,-172.09,9.878e-05,2]
[406950599,1772339431788,-1916.26,0.00011507,2]
[406950601,1772339431797,-225.6181,0.00011815,2]
[406950603,1772339431810,-166.66,0.00012191,2]
[406950605,1772339431819,-150.0,0.00012331,2]
[406950607,1772339431828,-1200.0,0.00012431,2]
[406950609,1772339431842,-1500.0,0.00012432,2]
[406950611,1772339431852,-166.66,0.00012447,2]
[406950613,1772339431861,-337.768402,0.00012451,2]
[406950615,1772339431872,-300.0,0.0001252,2]
[406950617,1772339431881,-452.08,0.00012521,2]
[406950619,1772339431890,-166.712536,0.00012557,2]
[406950620,1772339431900,-500.0,0.000127,2]
[406950621,1772339431909,-166.66,0.00012704,2]
[406950622,1772339431919,-1850.27,0.0001273,2]
[406950623,1772339431928,-166.66,0.00012961,2]
[406950624,1772339431938,-250.0,0.00012997,2]
[406950625,1772339431948,-272.19602647,0.00012997,2]
[406950626,1772339431957,-333.425074,0.0001311,2]
[406950627,1772339431967,-166.66,0.00013217,2]
[406950629,1772339431976,-500.0,0.00013248,2]
[406950631,1772339431985,-166.66,0.00013474,2]
[406950633,1772339431995,-150.0,0.000136,2]
[406950635,1772339432004,-152.91222231,0.000136,2]
[406950637,1772339432013,-1800.0,0.000136,4]
[406950639,1772339432023,-1001.23217592,0.00013648,2]
[406950641,1772339432031,-2899.4506,0.00013649,2]
[406950643,1772339432041,-16277.8065,0.00013649,2]
[406950645,1772339432050,-6745.6907,0.00013649,2]
[406950647,1772339432059,-2500.0,0.00013649,2]
[406950649,1772339432068,-1680.0,0.00013674,2]
[406950651,1772339432078,-500.0,0.00013698,2]
[406950653,1772339432087,-500.0,0.00013698,2]
[406950655,1772339432096,-1980.054,0.00013698,2]
[406950657,1772339432106,-192.387,0.00013698,2]
[406950659,1772339432115,-16307.73,0.00013699,2]
[406950661,1772339432124,-200.0,0.00013699,2]
[406950662,1772339432133,-157.68385894,0.000137,2]
[406950665,1772339432143,-47360.89718963,0.000137,2]
[406950667,1772339432152,-3700.0,0.000137,5]
[406950669,1772339432161,-184.54510158,0.000137,2]
[406950670,1772339432170,-1350.83677956,0.000137,2]
[406950672,1772339432179,-299.97221888,0.00013704,2]
[406950674,1772339432189,-1478.98605562,0.00013704,2]
[406950676,1772339432198,-420.0,0.00013737,2]
[406950677,1772339432207,-476.17238594,0.00013739,2]
[406950678,1772339432217,-151.0,0.00013746,2]
[406950679,1772339432226,-500.0,0.00013748,2]
[406950680,1772339432239,-500.0,0.00013748,2]
[406950681,1772339432249,-500.0,0.00013748,2]
[406950682,1772339432259,-500.0,0.00013748,2]
[406950683,1772339432268,-500.0,0.00013748,2]
[406950684,1772339432278,-353.12800196,0.00013748,2]
[406950685,1772339432288,-500.0,0.00013748,2]
[406950686,1772339432298,-507.0637494,0.00013748,2]
[406950687,1772339432308,-675.30386663,0.00013748,2]
[406950688,1772339432318,-500.0,0.00013748,2]
[406950689,1772339432327,-500.0,0.00013748,2]
[406950690,1772339432337,-500.0,0.00013748,2]
[406950691,1772339432346,-500.0,0.00013748,2]
[406950692,1772339432356,-500.0,0.00013748,2]
[406950693,1772339432366,-500.0,0.00013748,2]
[406950694,1772339432375,-500.0,0.00013748,2]
[406950695,1772339432385,-500.0,0.00013748,2]
[406950696,1772339432394,-500.0,0.00013748,2]
[406950697,1772339432404,-500.0,0.00013748,2]
[406950698,1772339432414,-500.0,0.00013748,2]
[406950699,1772339432423,-500.0,0.00013748,2]
[406950700,1772339432432,-500.0,0.00013748,2]
[406950701,1772339432442,-500.0,0.00013748,2]
[406950702,1772339432452,-500.0,0.00013748,2]
[406950703,1772339432461,-500.0,0.00013748,2]
[406950704,1772339432471,-500.0,0.00013748,2]
[406950705,1772339432480,-500.0,0.00013748,2]
[406950706,1772339432489,-236.77562988,0.00013748,2]
[406950707,1772339432498,-500.0,0.00013748,2]
[406950708,1772339432508,-500.0,0.00013748,2]
[406950709,1772339432518,-500.0,0.00013748,2]
[406950710,1772339432528,-500.0,0.00013748,2]
[406950711,1772339432538,-500.0,0.00013748,2]
[406950712,1772339432547,-500.0,0.00013748,2]
[406950713,1772339432560,-500.0,0.00013748,2]
[406950714,1772339432571,-500.0,0.00013748,2]
[406950715,1772339432581,-500.0,0.00013748,2]
[406950716,1772339432591,-500.0,0.00013748,2]
[406950717,1772339432601,-500.0,0.00013748,2]
[406950718,1772339432612,-500.0,0.00013748,2]
[406950719,1772339432625,-636.74916094,0.00013748,2]
[406950720,1772339432636,-500.0,0.00013748,2]
[406950721,1772339432647,-500.0,0.00013748,2]
[406950722,1772339432656,-500.0,0.00013748,2]
[406950723,1772339432666,-500.0,0.00013748,2]
[406950724,1772339432676,-315.24860923,0.00013748,2]
[406950725,1772339432687,-500.0,0.00013748,2]
[406950726,1772339432696,-500.0,0.00013748,2]
[406950727,1772339432710,-500.0,0.00013748,2]
[406950728,1772339432720,-500.0,0.00013748,2]
[406950729,1772339432730,-500.0,0.00013748,2]
[406950730,1772339432739,-450.0,0.00013748,2]
[406950731,1772339432749,-500.0,0.00013748,2]
[406950732,1772339432758,-223.88878277,0.00013748,2]
[406950733,1772339432771,-276.11121723,0.00013748,2]
[406950734,1772339432780,-500.0,0.00013748,2]
[406950735,1772339432793,-500.0,0.00013748,2]
[406950736,1772339432803,-500.0,0.00013748,2]
[406950737,1772339432815,-500.0,0.00013748,2]
[406950738,1772339432824,-180.41463529,0.00013748,2]
[406950739,1772339432835,-500.0,0.00013748,2]
[406950740,1772339432844,-303.19510239,0.00013748,2]
[406950741,1772339432853,-55395.88525986,0.00013749,2]
[406950742,1772339432865,-609.8984744,0.00013749,2]
[406950743,1772339432885,-750.0,0.00013749,2]
[406950748,1772339437909,-648.77829394,0.000137,2]
[406950749,1772339437919,-306.32475276,0.00013749,2]
[406950752,1772339440012,-851409.69464695,0.00013749,2]
[406950779,1772339445189,-6566.43976765,0.00013749,2]
[406950780,1772339445355,-386.8416,0.00013749,2]
[406950821,1772339883261,169.43,6.997e-05,2]
[406950822,1772339883584,169.43,7.951e-05,2]
[406950837,1772340631830,-169.43,8.905e-05,2]
[406950838,1772340631840,-150.0,9.002e-05,2]
[406950839,1772340631850,-300.0,9.002e-05,2]
[406950840,1772340631860,-1200.0,9.002e-05,2]
[406950841,1772340631874,-131.92,9.003e-05,2]
[406950842,1772340631937,-740.81531497,9.003e-05,2]
[406950843,1772340631947,-500.0,9.003e-05,2]
[406950844,1772340631956,-500.0,9.003e-05,2]
[406950845,1772340631966,-500.0,9.003e-05,2]
[406950846,1772340631976,-900.0,9.003e-05,2]
[406950847,1772340631985,-500.0,9.003e-05,2]
[406950848,1772340631995,-500.0,9.003e-05,2]
[406950849,1772340632005,-500.0,9.003e-05,2]
[406950850,1772340632014,-500.0,9.003e-05,2]
[406950851,1772340632024,-500.0,9.003e-05,2]
[406950852,1772340632033,-500.0,9.003e-05,2]
[406950853,1772340632043,-500.0,9.003e-05,2]
[406950855,1772340632052,-500.0,9.003e-05,2]
[406950856,1772340632062,-843.38457762,9.003e-05,2]
[406950858,1772340632071,-500.0,9.003e-05,2]
[406950860,1772340632080,-169.43,9.859e-05,2]
[406950862,1772340632089,-255.0,9.902e-05,2]
[406950864,1772340632098,-420.0,9.902e-05,2]
[406950866,1772340632108,-1680.0,9.902e-05,2]
[406950868,1772340632118,-326.51394,0.00010735,2]
[406950869,1772340632129,-360.77935,0.00010767,2]
[406950872,1772340632139,-169.43,0.00010813,2]
[406950875,1772340632149,-433.0,0.00010892,2]
[406950877,1772340632158,-587.0,0.00010892,2]
[406950880,1772340632170,-2351.0,0.00010892,2]
[406950881,1772340632180,-617.0,0.00010959,2]
[406950882,1772340632189,-187.0,0.00011002,2]
[406950883,1772340632202,-474.00986216,0.00011053,2]
[406950884,1772340632211,-288.265961,0.00011196,2]
[406950885,1772340632221,-828.0,0.00011209,2]